[Event "*** Titled Tuesday 3|2 Blitz"]
[Site "Chess.com"]
[Date "2015.12.01"]
[Round "3"]
[White "GrigorGrigorov"]
[Black "E-Shaposhnikov"]
[Result "1-0"]
[WhiteElo "2550"]
[BlackElo "2477"]
[TimeControl "180+2"]
[EndTime "11:35:58 PST"]
[Termination "GrigorGrigorov won by resignation"]

1. d4 {[%clk 0:03:01.9]} 1... Nf6 {[%clk 0:02:54.1]} 2. c4 {[%clk 0:03:02.6]}
2... e6 {[%clk 0:02:49.8]} 3. Nf3 {[%clk 0:03:03.2]} 3... b6 {[%clk 0:02:50.6]}
4. g3 {[%clk 0:03:04]} 4... Ba6 {[%clk 0:02:51.5]} 5. Qa4 {[%clk 0:03:01.6]}
5... Bb7 {[%clk 0:02:52.1]} 6. Bg2 {[%clk 0:03:02.1]} 6... Be7 {[%clk
0:02:51.6]} 7. O-O {[%clk 0:03:02.6]} 7... O-O {[%clk 0:02:53.2]} 8. Nc3 {[%clk
0:03:03.1]} 8... c5 {[%clk 0:02:54.4]} 9. dxc5 {[%clk 0:03:03.5]} 9... bxc5
{[%clk 0:02:56]} 10. Bf4 {[%clk 0:03:03.5]} 10... d6 {[%clk 0:02:57.2]} 11. Rfd1
{[%clk 0:03:01.4]} 11... Qb6 {[%clk 0:02:58.7]} 12. Rab1 {[%clk 0:03:01.9]}
12... Nbd7 {[%clk 0:02:51.3]} 13. b4 {[%clk 0:02:53.9]} 13... cxb4 {[%clk
0:02:49.2]} 14. Rxb4 {[%clk 0:02:37.4]} 14... Bc6 {[%clk 0:02:48.8]} 15. Qa3
{[%clk 0:02:28.2]} 15... Qc5 {[%clk 0:02:39.5]} 16. Na4 {[%clk 0:01:59.1]} 16...
Bxa4 {[%clk 0:02:01.7]} 17. Rxa4 {[%clk 0:01:53.9]} 17... Qxa3 {[%clk
0:01:49.2]} 18. Rxa3 {[%clk 0:01:54.3]} 18... d5 {[%clk 0:01:48.3]} 19. Rad3
{[%clk 0:01:37.1]} 19... Nc5 {[%clk 0:01:45]} 20. Rd4 {[%clk 0:01:33.9]} 20...
Nce4 {[%clk 0:01:36]} 21. cxd5 {[%clk 0:01:29.2]} 21... exd5 {[%clk 0:01:22.7]}
22. R4d3 {[%clk 0:01:11.6]} 22... Rac8 {[%clk 0:01:13.5]} 23. Nd4 {[%clk
0:01:11.8]} 23... Nc3 {[%clk 0:01:12.8]} 24. R1d2 {[%clk 0:01:04.4]} 24... Nfe4
{[%clk 0:01:07]} 25. Rc2 {[%clk 0:00:59.6]} 25... Bc5 {[%clk 0:01:01]} 26. Bh3
{[%clk 0:00:51.9]} 26... Rce8 {[%clk 0:00:47]} 27. e3 {[%clk 0:00:43.2]} 27...
Bb4 {[%clk 0:00:19]} 28. f3 {[%clk 0:00:38.4]} 28... g5 {[%clk 0:00:08.1]} 29.
Bc7 {[%clk 0:00:31.2]} 29... Re7 {[%clk 0:00:09]} 30. Nc6 {[%clk 0:00:32.3]}
30... Rxc7 {[%clk 0:00:06.8]} 31. Nxb4 {[%clk 0:00:33.2]} 31... Rb8 {[%clk
0:00:07.6]} 32. fxe4 {[%clk 0:00:31.7]} 32... Rxb4 {[%clk 0:00:03.9]} 33. Rdxc3
{[%clk 0:00:32.3]} 33... Rb1+ {[%clk 0:00:04.7]} 34. Bf1 {[%clk 0:00:28.3]}
34... Rxc3 {[%clk 0:00:04.4]} 35. Rxc3 {[%clk 0:00:29.3]} 35... dxe4 {[%clk
0:00:05.7]} 36. Rc5 {[%clk 0:00:30.4]} 36... h6 {[%clk 0:00:06.2]} 37. Ra5
{[%clk 0:00:31.2]} 37... Rb7 {[%clk 0:00:05.3]} 38. Bc4 {[%clk 0:00:26.5]} 38...
Kg7 {[%clk 0:00:06.1]} 39. Bb3 {[%clk 0:00:26.2]} 39... Rc7 {[%clk 0:00:05.9]}
40. g4 {[%clk 0:00:26.3]} 40... Rc1+ {[%clk 0:00:05.5]} 41. Kg2 {[%clk
0:00:26.8]} 41... Rc7 {[%clk 0:00:03.1]} 42. Kg3 {[%clk 0:00:28.1]} 42... Rd7
{[%clk 0:00:02.5]} 43. Ra4 {[%clk 0:00:26]} 43... Re7 {[%clk 0:00:03.1]} 44. Ra5
{[%clk 0:00:27]} 44... Rd7 {[%clk 0:00:04.3]} 45. Re5 {[%clk 0:00:28.1]} 45...
Rd2 {[%clk 0:00:03.7]} 46. Rxe4 {[%clk 0:00:29]} 46... Kf8 {[%clk 0:00:05.1]}
47. h4 {[%clk 0:00:29.9]} 47... f6 {[%clk 0:00:05.5]} 48. h5 {[%clk 0:00:30]}
48... a5 {[%clk 0:00:06.4]} 49. Ra4 {[%clk 0:00:30.6]} 49... Re2 {[%clk
0:00:07.1]} 50. Kf3 {[%clk 0:00:30.8]} 50... Rh2 {[%clk 0:00:08.1]} 51. Rxa5
{[%clk 0:00:31.7]} 51... Ke7 {[%clk 0:00:09.2]} 52. Ra6 {[%clk 0:00:32.2]} 52...
Rh1 {[%clk 0:00:08.8]} 53. Re6+ {[%clk 0:00:32]} 53... Kf7 {[%clk 0:00:10.1]}
54. Rb6+ {[%clk 0:00:33.4]} 54... Ke7 {[%clk 0:00:10.9]} 55. Ke4 {[%clk
0:00:35]} 55... Rf1 {[%clk 0:00:09.2]} 56. a4 {[%clk 0:00:33.4]} 56... Rb1
{[%clk 0:00:05.7]} 57. a5 {[%clk 0:00:33.6]} 57... Kd7 {[%clk 0:00:07.2]} 58.
Kf5 {[%clk 0:00:34.2]} 58... Ra1 {[%clk 0:00:06.8]} 59. a6 {[%clk 0:00:34.3]}
59... Kc7 {[%clk 0:00:07.6]} 60. Rb7+ {[%clk 0:00:35.4]} 60... Kc6 {[%clk
0:00:08.7]} 61. Rf7 {[%clk 0:00:34.9]} 61... Kc5 {[%clk 0:00:06.2]} 62. Rxf6
{[%clk 0:00:35.6]} 62... Ra3 {[%clk 0:00:07.7]} 63. Bf7 {[%clk 0:00:36.6]} 63...
Rxe3 {[%clk 0:00:08]} 64. Kg6 {[%clk 0:00:38.2]} 64... Ra3 {[%clk 0:00:06.8]}
65. Kxh6 {[%clk 0:00:39.2]} 65... Kd4 {[%clk 0:00:08.3]} 66. Kxg5 {[%clk
0:00:40]} 66... Ke5 {[%clk 0:00:09.8]} 67. Bg6 {[%clk 0:00:40.8]} 67... Ra5
{[%clk 0:00:08]} 68. Bf5 {[%clk 0:00:41.9]} 68... Kd4 {[%clk 0:00:06.9]} 69. h6
{[%clk 0:00:43.1]} 1-0

[Event "*** Titled Tuesday 3|2 Blitz"]
[Site "Chess.com"]
[Date "2015.12.01"]
[Round "3"]
[White "JustaTrickstar"]
[Black "Gergo85"]
[Result "0-1"]
[WhiteElo "2502"]
[BlackElo "2343"]
[TimeControl "180+2"]
[EndTime "11:36:03 PST"]
[Termination "Gergo85 won by resignation"]

1. c4 {[%clk 0:03:01.3]} 1... Nf6 {[%clk 0:02:59.7]} 2. Nc3 {[%clk 0:03:00.5]}
2... c5 {[%clk 0:03:00.3]} 3. g3 {[%clk 0:03:00.1]} 3... d5 {[%clk 0:03:00.2]}
4. cxd5 {[%clk 0:02:55.5]} 4... Nxd5 {[%clk 0:03:02.1]} 5. Bg2 {[%clk
0:02:51.9]} 5... Nc7 {[%clk 0:03:03.1]} 6. Nf3 {[%clk 0:02:12.9]} 6... Nc6
{[%clk 0:03:04.5]} 7. O-O {[%clk 0:02:14.4]} 7... e5 {[%clk 0:03:05.4]} 8. b3
{[%clk 0:02:14.2]} 8... Be7 {[%clk 0:03:03]} 9. Bb2 {[%clk 0:02:15.2]} 9... O-O
{[%clk 0:03:03.5]} 10. d3 {[%clk 0:02:15]} 10... f6 {[%clk 0:03:04.3]} 11. Rc1
{[%clk 0:02:08.8]} 11... Rb8 {[%clk 0:03:05.3]} 12. Nd2 {[%clk 0:02:07.8]} 12...
Nd4 {[%clk 0:03:04.5]} 13. f4 {[%clk 0:02:03.9]} 13... exf4 {[%clk 0:02:59.2]}
14. gxf4 {[%clk 0:02:03.1]} 14... b6 {[%clk 0:03:00]} 15. e3 {[%clk 0:01:48.7]}
15... Nf5 {[%clk 0:02:56.6]} 16. Qe2 {[%clk 0:01:49.6]} 16... Re8 {[%clk
0:02:46.6]} 17. Nde4 {[%clk 0:01:34.4]} 17... Bf8 {[%clk 0:02:33.5]} 18. Rcd1
{[%clk 0:01:25.6]} 18... Kh8 {[%clk 0:02:31.7]} 19. Rfe1 {[%clk 0:01:24.4]}
19... Bb7 {[%clk 0:02:29.1]} 20. Qh5 {[%clk 0:01:23.3]} 20... g6 {[%clk
0:02:19]} 21. Qe2 {[%clk 0:01:23.3]} 21... Bg7 {[%clk 0:02:20.3]} 22. Qf2 {[%clk
0:01:24.2]} 22... Nd5 {[%clk 0:02:18.7]} 23. Nxd5 {[%clk 0:01:24.5]} 23... Bxd5
{[%clk 0:02:20.6]} 24. Ng3 {[%clk 0:01:16.4]} 24... Bxg2 {[%clk 0:02:20.2]} 25.
Nxf5 {[%clk 0:00:59.2]} 25... Bc6 {[%clk 0:02:21.6]} 26. Nxg7 {[%clk 0:00:59.8]}
26... Kxg7 {[%clk 0:02:23.3]} 27. e4 {[%clk 0:01:01.1]} 27... Rb7 {[%clk
0:02:19.2]} 28. d4 {[%clk 0:00:40.1]} 28... Rxe4 {[%clk 0:01:40.7]} 29. dxc5
{[%clk 0:00:40.2]} 29... Rxe1+ {[%clk 0:01:40.4]} 30. Qxe1 {[%clk 0:00:39.5]}
30... Rd7 {[%clk 0:01:36.8]} 31. Rxd7+ {[%clk 0:00:36.2]} 31... Qxd7 {[%clk
0:01:38.7]} 32. cxb6 {[%clk 0:00:35]} 32... axb6 {[%clk 0:01:28.9]} 33. Qc3
{[%clk 0:00:32.7]} 33... Qe6 {[%clk 0:01:22]} 34. Kf2 {[%clk 0:00:29.9]} 34...
h5 {[%clk 0:01:23.1]} 35. h4 {[%clk 0:00:29]} 35... Bb5 {[%clk 0:01:12]} 36. Qe3
{[%clk 0:00:24.1]} 36... Qd6 {[%clk 0:01:13.3]} 37. Qd4 {[%clk 0:00:22.8]} 37...
Qc6 {[%clk 0:01:13.2]} 38. Qc3 {[%clk 0:00:19.6]} 38... Qe6 {[%clk 0:01:08.9]}
39. Qe3 {[%clk 0:00:15.8]} 39... Qd7 {[%clk 0:00:36.4]} 40. Qd4 {[%clk
0:00:14.3]} 40... Qc6 {[%clk 0:00:36.9]} 41. Qc3 {[%clk 0:00:15.1]} 41... Qe6
{[%clk 0:00:26]} 42. Qe3 {[%clk 0:00:15.7]} 42... Qd6 {[%clk 0:00:23.3]} 43. a4
{[%clk 0:00:15.5]} 43... Bd7 {[%clk 0:00:21.9]} 44. Bd4 {[%clk 0:00:13.5]} 44...
Be6 {[%clk 0:00:21.1]} 45. Bxb6 {[%clk 0:00:11.5]} 45... Qc6 {[%clk 0:00:21.3]}
46. Qc5 {[%clk 0:00:07.8]} 46... Qe4 {[%clk 0:00:22.3]} 47. Qc7+ {[%clk
0:00:07.9]} 47... Kh6 {[%clk 0:00:23.1]} 48. Bc5 {[%clk 0:00:09.2]} 48... Qc2+
{[%clk 0:00:23.7]} 49. Ke1 {[%clk 0:00:10.3]} 49... Qc1+ {[%clk 0:00:24.5]} 50.
Kf2 {[%clk 0:00:11.3]} 50... Qd2+ {[%clk 0:00:25.3]} 51. Kg3 {[%clk 0:00:08.2]}
51... Qd3+ {[%clk 0:00:25.8]} 52. Kf2 {[%clk 0:00:09.3]} 52... Qd2+ {[%clk
0:00:27.2]} 53. Kg3 {[%clk 0:00:09.3]} 53... Qe1+ {[%clk 0:00:19.1]} 54. Bf2
{[%clk 0:00:09.8]} 54... Qf1 {[%clk 0:00:20.3]} 55. Kf3 {[%clk 0:00:09.2]} 55...
Bg4+ {[%clk 0:00:19.1]} 56. Ke3 {[%clk 0:00:10.5]} 56... Qe2+ {[%clk 0:00:20.7]}
57. Kd4 {[%clk 0:00:12.2]} 57... Qxf2+ {[%clk 0:00:22.4]} 58. Kd5 {[%clk
0:00:11.8]} 58... Qd2+ {[%clk 0:00:20.2]} 59. Kc6 {[%clk 0:00:12.3]} 59... Bf3+
{[%clk 0:00:20.9]} 60. Kb6 {[%clk 0:00:11.4]} 60... Qe3+ {[%clk 0:00:22]} 61.
Ka5 {[%clk 0:00:11.7]} 61... Qxb3 {[%clk 0:00:23.6]} 62. Qd8 {[%clk 0:00:10.8]}
62... Qc3+ {[%clk 0:00:24.7]} 63. Ka6 {[%clk 0:00:11.6]} 63... Be2+ {[%clk
0:00:25.1]} 64. Kb7 {[%clk 0:00:12.4]} 64... Qb3+ {[%clk 0:00:24.3]} 65. Kc7
{[%clk 0:00:12.8]} 65... Qc4+ {[%clk 0:00:25]} 66. Kb7 {[%clk 0:00:11.4]} 66...
Qb4+ {[%clk 0:00:26.2]} 67. Kc7 {[%clk 0:00:07.6]} 67... Qa5+ {[%clk 0:00:27]}
68. Kc8 {[%clk 0:00:08.9]} 68... Ba6+ {[%clk 0:00:25.9]} 69. Kd7 {[%clk
0:00:09.5]} 69... Qxd8+ {[%clk 0:00:26.4]} 70. Kxd8 {[%clk 0:00:10.5]} 70... g5
{[%clk 0:00:27.8]} 71. fxg5+ {[%clk 0:00:12.2]} 71... fxg5 {[%clk 0:00:29.1]}
0-1

[Event "*** Titled Tuesday 3|2 Blitz"]
[Site "Chess.com"]
[Date "2015.12.01"]
[Round "3"]
[White "Matibar"]
[Black "kpio91"]
[Result "0-1"]
[WhiteElo "2451"]
[BlackElo "2542"]
[TimeControl "180+2"]
[EndTime "11:36:07 PST"]
[Termination "kpio91 won by resignation"]

1. g3 {[%clk 0:02:58.6]} 1... d5 {[%clk 0:02:59.1]} 2. Bg2 {[%clk 0:03:00.5]}
2... e5 {[%clk 0:02:59.2]} 3. d3 {[%clk 0:02:57.9]} 3... Nc6 {[%clk 0:02:59.5]}
4. Nf3 {[%clk 0:02:58.6]} 4... Nf6 {[%clk 0:02:59.2]} 5. O-O {[%clk 0:02:58.9]}
5... Be7 {[%clk 0:02:59.1]} 6. c3 {[%clk 0:02:59.1]} 6... O-O {[%clk 0:02:59.8]}
7. Nbd2 {[%clk 0:02:55.9]} 7... Re8 {[%clk 0:02:59.9]} 8. e4 {[%clk 0:02:56.1]}
8... dxe4 {[%clk 0:02:55.8]} 9. dxe4 {[%clk 0:02:56]} 9... a5 {[%clk 0:02:57.5]}
10. Qc2 {[%clk 0:02:51.9]} 10... Bd7 {[%clk 0:02:39.9]} 11. Rd1 {[%clk
0:02:50.4]} 11... Qc8 {[%clk 0:02:40.8]} 12. Nc4 {[%clk 0:02:51.2]} 12... Bf8
{[%clk 0:02:39.4]} 13. Bg5 {[%clk 0:02:49.8]} 13... Nh5 {[%clk 0:02:36]} 14. a4
{[%clk 0:02:47.5]} 14... h6 {[%clk 0:02:35.4]} 15. Bd2 {[%clk 0:02:47.6]} 15...
Nf6 {[%clk 0:02:34.8]} 16. Ne1 {[%clk 0:02:41.6]} 16... Be6 {[%clk 0:02:33.5]}
17. Bf1 {[%clk 0:02:38.2]} 17... Nd7 {[%clk 0:02:34.1]} 18. Ne3 {[%clk
0:02:33.1]} 18... Nb6 {[%clk 0:02:18.4]} 19. Bb5 {[%clk 0:02:24.9]} 19... f6
{[%clk 0:02:09.7]} 20. Nf3 {[%clk 0:02:19.3]} 20... Rd8 {[%clk 0:02:07.2]} 21.
Nh4 {[%clk 0:02:18.4]} 21... Qd7 {[%clk 0:02:05.6]} 22. Be1 {[%clk 0:01:19.8]}
22... Qf7 {[%clk 0:02:01.1]} 23. Rxd8 {[%clk 0:01:21.7]} 23... Rxd8 {[%clk
0:02:01.7]} 24. Qe2 {[%clk 0:01:21.5]} 24... Nb8 {[%clk 0:01:43.9]} 25. Bd3
{[%clk 0:01:18.6]} 25... N8d7 {[%clk 0:01:41.4]} 26. Bc2 {[%clk 0:01:18]} 26...
Bb3 {[%clk 0:01:28.3]} 27. Qb5 {[%clk 0:00:48.6]} 27... Bxc2 {[%clk 0:01:23.6]}
28. Nxc2 {[%clk 0:00:50.5]} 28... c6 {[%clk 0:01:24.3]} 29. Qe2 {[%clk 0:00:46]}
29... Qb3 {[%clk 0:01:24.2]} 30. Ne3 {[%clk 0:00:44.2]} 30... Qf7 {[%clk
0:00:51.9]} 31. Qc2 {[%clk 0:00:41.3]} 31... Nc5 {[%clk 0:00:50.9]} 32. b4
{[%clk 0:00:41]} 32... axb4 {[%clk 0:00:42.7]} 33. cxb4 {[%clk 0:00:42.9]} 33...
Nb3 {[%clk 0:00:43.7]} 34. Rd1 {[%clk 0:00:32.1]} 34... Nd4 {[%clk 0:00:44.2]}
35. Qb1 {[%clk 0:00:27.4]} 35... Nxa4 {[%clk 0:00:43.3]} 36. Kg2 {[%clk
0:00:28.6]} 36... b5 {[%clk 0:00:41.3]} 37. Bd2 {[%clk 0:00:25.3]} 37... Qb3
{[%clk 0:00:39.7]} 38. Qc1 {[%clk 0:00:24.1]} 38... Qd3 {[%clk 0:00:25.3]} 39.
Re1 {[%clk 0:00:12.6]} 39... Qxe4+ {[%clk 0:00:16.3]} 40. f3 {[%clk 0:00:13.5]}
40... Qd3 {[%clk 0:00:16.9]} 41. Nf1 {[%clk 0:00:13.7]} 41... Qc4 {[%clk
0:00:15.6]} 42. Qb1 {[%clk 0:00:14.5]} 42... Nb3 {[%clk 0:00:15.3]} 43. Be3
{[%clk 0:00:12.4]} 43... Nc3 {[%clk 0:00:15.7]} 44. Qg6 {[%clk 0:00:12.2]} 44...
Qf7 {[%clk 0:00:15.5]} 45. Qc2 {[%clk 0:00:13.2]} 45... Nd5 {[%clk 0:00:13.3]}
46. Bd2 {[%clk 0:00:11.2]} 46... Nd4 {[%clk 0:00:13.9]} 47. Qb1 {[%clk
0:00:11.3]} 47... Ra8 {[%clk 0:00:14.2]} 48. Be3 {[%clk 0:00:06.2]} 48... Ra2+
{[%clk 0:00:13]} 49. Kg1 {[%clk 0:00:05.8]} 49... Nxe3 {[%clk 0:00:13.6]} 50.
Nxe3 {[%clk 0:00:07.7]} 50... Qb3 {[%clk 0:00:14.3]} 51. Qg6 {[%clk 0:00:06.8]}
51... Qb2 {[%clk 0:00:11.4]} 52. Neg2 {[%clk 0:00:04.9]} 52... Qf2+ {[%clk
0:00:11.5]} 53. Kh1 {[%clk 0:00:05.8]} 53... Nxf3 {[%clk 0:00:08.7]} 54. Rd1
{[%clk 0:00:02.7]} 54... Nxh4 {[%clk 0:00:07.5]} 55. gxh4 {[%clk 0:00:04.6]}
55... Qf3 {[%clk 0:00:08.7]} 56. Rg1 {[%clk 0:00:05.5]} 56... Rf2 {[%clk
0:00:09]} 57. h5 {[%clk 0:00:06.1]} 57... Rf1 {[%clk 0:00:09.9]} 58. h4 {[%clk
0:00:06.3]} 58... Qf2 {[%clk 0:00:10.8]} 59. Rxf1 {[%clk 0:00:07.3]} 59... Qxf1+
{[%clk 0:00:11.7]} 60. Kh2 {[%clk 0:00:09.2]} 60... Qf2 {[%clk 0:00:12.7]} 61.
Kh3 {[%clk 0:00:09]} 61... Qf3+ {[%clk 0:00:13.6]} 62. Kh2 {[%clk 0:00:10.2]}
62... Bxb4 {[%clk 0:00:13.8]} 63. Qe8+ {[%clk 0:00:10.9]} 63... Bf8 {[%clk
0:00:14.8]} 64. Qe6+ {[%clk 0:00:12.4]} 64... Kh8 {[%clk 0:00:16]} 65. Qe8
{[%clk 0:00:13.5]} 65... Qa3 {[%clk 0:00:16.9]} 66. Qxc6 {[%clk 0:00:13.7]}
66... Qc5 {[%clk 0:00:18]} 67. Qe8 {[%clk 0:00:14.3]} 67... b4 {[%clk
0:00:18.9]} 68. Ne3 {[%clk 0:00:15.5]} 68... Qxe3 {[%clk 0:00:19.7]} 69. Qxf8+
{[%clk 0:00:16.6]} 69... Kh7 {[%clk 0:00:20.4]} 70. Qxb4 {[%clk 0:00:17.6]}
70... Qf2+ {[%clk 0:00:21.6]} 71. Kh3 {[%clk 0:00:18]} 71... Qf3+ {[%clk
0:00:22.9]} 72. Kh2 {[%clk 0:00:19.4]} 72... Qxh5 {[%clk 0:00:24.6]} 0-1

[Event "*** Titled Tuesday 3|2 Blitz"]
[Site "Chess.com"]
[Date "2015.12.01"]
[Round "3"]
[White "tigra"]
[Black "Anton_Demchenko"]
[Result "0-1"]
[WhiteElo "1908"]
[BlackElo "2661"]
[TimeControl "180+2"]
[EndTime "11:36:31 PST"]
[Termination "Anton_Demchenko won by checkmate"]

1. e4 {[%clk 0:02:59.4]} 1... e5 {[%clk 0:03:00.9]} 2. Nc3 {[%clk 0:02:58.7]}
2... Nf6 {[%clk 0:03:00.6]} 3. Nf3 {[%clk 0:02:59.5]} 3... Nc6 {[%clk
0:03:00.7]} 4. Bb5 {[%clk 0:03:01]} 4... Bb4 {[%clk 0:03:00.8]} 5. O-O {[%clk
0:03:01.3]} 5... O-O {[%clk 0:03:01.3]} 6. d3 {[%clk 0:03:02.4]} 6... d6 {[%clk
0:03:02.1]} 7. Ne2 {[%clk 0:03:02.4]} 7... Ne7 {[%clk 0:03:02.3]} 8. c3 {[%clk
0:03:03]} 8... Ba5 {[%clk 0:03:02.8]} 9. Ng3 {[%clk 0:03:03]} 9... c6 {[%clk
0:03:02.7]} 10. Ba4 {[%clk 0:03:03.7]} 10... Ng6 {[%clk 0:03:02.4]} 11. d4
{[%clk 0:03:04.4]} 11... Re8 {[%clk 0:03:03.3]} 12. Bc2 {[%clk 0:02:57]} 12...
Bb6 {[%clk 0:02:47.6]} 13. Re1 {[%clk 0:02:56.3]} 13... Bg4 {[%clk 0:02:46.3]}
14. Be3 {[%clk 0:02:55.4]} 14... Nh4 {[%clk 0:02:37.6]} 15. Bg5 {[%clk
0:02:52.7]} 15... Nxf3+ {[%clk 0:02:14.7]} 16. gxf3 {[%clk 0:02:53.5]} 16... Bh3
{[%clk 0:02:16.2]} 17. Nh5 {[%clk 0:02:47.3]} 17... Nxh5 {[%clk 0:02:05.8]} 18.
Bxd8 {[%clk 0:02:47.6]} 18... Raxd8 {[%clk 0:02:07.7]} 19. Kh1 {[%clk
0:02:44.2]} 19... Nf4 {[%clk 0:02:01.7]} 20. Rg1 {[%clk 0:02:41]} 20... c5
{[%clk 0:01:50.2]} 21. Ba4 {[%clk 0:02:36.3]} 21... Rf8 {[%clk 0:01:50.5]} 22.
d5 {[%clk 0:02:28]} 22... c4 {[%clk 0:01:50.9]} 23. Bb5 {[%clk 0:02:28.4]} 23...
Rc8 {[%clk 0:01:47.1]} 24. Rg3 {[%clk 0:02:25.4]} 24... Rc7 {[%clk 0:01:35.8]}
25. Qd2 {[%clk 0:02:16.8]} 25... a6 {[%clk 0:01:29.8]} 26. Ba4 {[%clk
0:02:17.6]} 26... g6 {[%clk 0:01:29.6]} 27. Rag1 {[%clk 0:02:11.8]} 27... Bc8
{[%clk 0:01:25]} 28. Bd1 {[%clk 0:02:09]} 28... Ba7 {[%clk 0:01:25.7]} 29. Rf1
{[%clk 0:02:08.4]} 29... b5 {[%clk 0:01:26.5]} 30. Be2 {[%clk 0:02:09.3]} 30...
Kg7 {[%clk 0:01:25.2]} 31. b3 {[%clk 0:02:07.7]} 31... Bd7 {[%clk 0:01:23.7]}
32. bxc4 {[%clk 0:02:08.3]} 32... bxc4 {[%clk 0:01:25.6]} 33. Rb1 {[%clk
0:02:07.9]} 33... Bxf2 {[%clk 0:01:22]} 34. Bxc4 {[%clk 0:02:08.6]} 34... Bc5
{[%clk 0:01:10.5]} 35. Bxa6 {[%clk 0:02:07]} 35... Ra8 {[%clk 0:01:11.6]} 36.
Bf1 {[%clk 0:01:52.1]} 36... Rca7 {[%clk 0:01:08.8]} 37. Rb2 {[%clk 0:01:52.8]}
37... h5 {[%clk 0:01:08.9]} 38. Rg2 {[%clk 0:01:50.2]} 38... h4 {[%clk
0:01:02.6]} 39. Qe1 {[%clk 0:01:48.7]} 39... h3 {[%clk 0:01:00.8]} 40. Rgd2
{[%clk 0:01:47.9]} 40... Ra3 {[%clk 0:01:00.8]} 41. Rdc2 {[%clk 0:01:11.5]}
41... Bc8 {[%clk 0:01:00.5]} 42. Qb1 {[%clk 0:01:07.6]} 42... g5 {[%clk
0:00:42.9]} 43. Rb5 {[%clk 0:00:55.2]} 43... Ba7 {[%clk 0:00:29.6]} 44. Rb3
{[%clk 0:00:37.9]} 44... Ra5 {[%clk 0:00:25.8]} 45. c4 {[%clk 0:00:32.5]} 45...
Bc5 {[%clk 0:00:26.5]} 46. Rb5 {[%clk 0:00:33.4]} 46... g4 {[%clk 0:00:24.7]}
47. Rxc5 {[%clk 0:00:33.3]} 47... Rxc5 {[%clk 0:00:24.4]} 48. fxg4 {[%clk
0:00:32.2]} 48... Bxg4 {[%clk 0:00:24.5]} 49. Qb3 {[%clk 0:00:32.7]} 49... Bh5
{[%clk 0:00:17]} 50. Kg1 {[%clk 0:00:32.4]} 50... Rca5 {[%clk 0:00:16.7]} 51.
Qg3+ {[%clk 0:00:29.4]} 51... Bg6 {[%clk 0:00:17.4]} 52. Qf2 {[%clk 0:00:28.4]}
52... Rc5 {[%clk 0:00:16.9]} 53. Qe3 {[%clk 0:00:27.1]} 53... Rb8 {[%clk
0:00:16.7]} 54. Kf2 {[%clk 0:00:24.1]} 54... Rb1 {[%clk 0:00:17.5]} 55. Bxh3
{[%clk 0:00:19.4]} 55... Rh1 {[%clk 0:00:17.3]} 56. Kg3 {[%clk 0:00:19.7]} 56...
Rd1 {[%clk 0:00:08]} 57. Kh4 {[%clk 0:00:14.3]} 57... Rd4 {[%clk 0:00:07.4]} 58.
Bg2 {[%clk 0:00:11.3]} 58... f5 {[%clk 0:00:07.8]} 59. Bh1 {[%clk 0:00:09.6]}
59... fxe4 {[%clk 0:00:08.5]} 60. Kg5 {[%clk 0:00:09.6]} 60... Rdxc4 {[%clk
0:00:06.6]} 61. Rxc4 {[%clk 0:00:10.2]} 61... Rxc4 {[%clk 0:00:08.5]} 62. Qa7+
{[%clk 0:00:11.2]} 62... Bf7 {[%clk 0:00:08.9]} 63. h4 {[%clk 0:00:09.9]} 63...
e3 {[%clk 0:00:08.8]} 64. Kf5 {[%clk 0:00:10.1]} 64... Nh5 {[%clk 0:00:07.7]}
65. Qxe3 {[%clk 0:00:06.9]} 65... Bg6+ {[%clk 0:00:07.4]} 66. Kg5 {[%clk
0:00:07.7]} 66... Nf6 {[%clk 0:00:07.3]} 67. Qa7+ {[%clk 0:00:08.2]} 67... Bf7
{[%clk 0:00:08]} 68. Bf3 {[%clk 0:00:09.1]} 68... Rf4 {[%clk 0:00:08.5]} 69. Be4
{[%clk 0:00:04.9]} 69... Nxe4# {[%clk 0:00:09.2]} 0-1